bitfinex/quotes_SOLUSD_20251115
["timestamp","ask_amount","ask_price","bid_price","bid_amount"]
[1763227031929,0.71,143.01,142.98,1.83548649]
[1763227033130,2.54548649,143.01,142.97,61.8]
[1763227033337,1.83548649,142.99,142.97,61.8]
[1763227033726,0.67,142.98,142.97,61.8]
[1763227034358,0.67,143.0,142.97,63.63548649]
[1763227034750,1.93548649,143.02,142.98,1.83548649]
[1763227034940,1.93548649,143.02,142.98,63.63548649]
[1763227034941,0.67,143.01,142.98,63.63548649]
[1763227036947,0.67,143.01,142.98,66.26103577]
[1763227037149,4.46103577,143.0,142.98,61.8]
[1763227037452,4.46103577,142.99,142.98,61.8]
[1763227038052,5.12103577,142.99,142.98,61.8]
[1763227038548,32.54002769,143.02,142.98,61.8]
[1763227038549,4.46103577,143.0,142.98,61.8]
[1763227038852,0.66,142.99,142.98,61.8]
[1763227043173,7.76337139,142.99,142.98,61.8]
[1763227047662,0.66,142.99,142.98,61.8]
[1763227047864,7.76337139,142.99,142.98,61.8]
[1763227048168,7.76337139,142.99,142.93,61.8]
[1763227048339,0.66,142.98,142.93,61.8]
[1763227048543,7.10337139,142.96,142.93,61.8]
[1763227048844,7.10337139,142.97,142.93,61.8]
[1763227049285,0.66,142.96,142.93,61.8]
[1763227050559,7.10337139,142.97,142.93,68.90337139]
[1763227050760,0.66,142.97,142.93,68.90337139]
[1763227051376,7.76337139,142.97,142.93,61.8]
[1763227051578,7.76337139,142.97,142.93,68.90337139]
[1763227052663,7.10337139,142.97,142.93,68.90337139]
[1763227052945,0.66,142.96,142.93,68.90337139]
[1763227053160,7.10337139,142.97,142.93,68.90337139]
[1763227053776,0.66,142.97,142.93,7.10337139]
[1763227053936,7.76337139,143.0,142.95,7.10337139]
[1763227054141,7.76337139,143.0,142.96,7.10337139]
[1763227054362,7.76337139,143.0,142.93,22.6512]
[1763227054363,0.66,142.99,142.93,22.6512]
[1763227054566,0.66,142.99,142.95,7.10337139]
[1763227055375,7.76337139,142.99,142.93,22.6512]
[1763227055582,7.76337139,142.99,142.91,21.04]
[1763227055583,7.10337139,142.98,142.94,7.10337139]
[1763227055746,7.76337139,142.99,142.94,7.10337139]
[1763227056163,0.66,142.98,142.94,7.10337139]
[1763227057169,7.76337139,142.98,142.93,7.10337139]
[1763227057554,0.66,142.97,142.93,7.10337139]
[1763227057860,0.66,142.97,142.94,7.10337139]
[1763227058261,22.6512,143.01,142.94,7.10337139]
[1763227058441,0.66,142.99,142.94,7.10337139]
[1763227058767,7.76337139,142.99,142.94,7.10337139]
[1763227058960,3.52920088,142.99,142.94,2.86920088]
[1763227059254,0.66,142.98,142.94,2.86920088]
[1763227059866,3.52920088,142.98,142.94,2.86920088]
[1763227060465,0.66,142.97,142.94,2.86920088]
[1763227060661,0.66,142.97,142.91,22.6512]
[1763227060977,2.86920088,142.94,142.9,2.86920088]
[1763227061179,2.86920088,142.93,142.86,21.04]
[1763227061345,2.86920088,142.93,142.88,2.86920088]
[1763227061665,0.66,142.92,142.88,2.86920088]
[1763227061871,3.52920088,142.93,142.88,2.86920088]
[1763227062167,3.52920088,142.93,142.89,2.86920088]
[1763227063460,0.66,142.93,142.9,2.86920088]
[1763227063772,3.52920088,142.93,142.87,22.6512]
[1763227063952,3.52920088,142.93,142.89,2.86920088]
[1763227066757,3.56920088,142.92,142.88,2.86920088]
[1763227067278,0.7,142.92,142.88,2.86920088]
[1763227067475,3.56920088,142.91,142.86,2.86920088]
[1763227067652,2.86920088,142.89,142.86,9.78882769]
[1763227068056,0.7,142.88,142.86,9.78882769]
[1763227068468,3.56920088,142.89,142.86,9.78882769]
[1763227069167,0.7,142.88,142.85,2.86920088]
[1763227069679,0.7,142.88,142.85,21.043033]
[1763227070578,0.7,142.9,142.85,23.91223388]
[1763227070771,2.86920088,142.9,142.85,23.91223388]
[1763227070969,3.56920088,142.89,142.85,21.043033]
[1763227071171,3.56920088,142.89,142.85,23.91223388]
[1763227071560,0.7,142.88,142.85,23.91223388]
[1763227072596,0.7,142.88,142.85,21.043033]
[1763227072597,3.56920088,142.88,142.85,21.043033]
[1763227072806,2.86920088,142.87,142.83,0.2]
[1763227073093,2.86920088,142.85,142.83,9.98882769]
[1763227073290,3.56920088,142.86,142.83,0.2]
[1763227073474,2.86920088,142.86,142.83,0.2]
[1763227073660,2.86920088,142.84,142.83,0.2]
[1763227074178,3.56920088,142.84,142.83,0.2]
[1763227074386,52.86920088,142.92,142.83,0.2]
[1763227074565,0.7,142.86,142.83,3.06920088]
[1763227075258,3.56920088,142.9,142.85,2.86920088]
[1763227075460,3.56920088,142.9,142.86,2.86920088]
[1763227075966,0.7,142.89,142.86,2.86920088]
[1763227078790,9.78882769,142.95,142.86,2.86920088]
[1763227078972,3.56920088,142.93,142.89,2.86920088]
[1763227079293,3.56920088,142.93,142.88,2.86920088]
[1763227079481,0.7,142.93,142.9,2.86920088]
[1763227081192,0.7,142.95,142.92,2.86920088]
[1763227081486,0.7,142.95,142.87,57.4025368]
[1763227081697,0.7,142.95,142.93,2.86920088]
[1763227082075,0.7,142.96,142.93,2.86920088]
[1763227082266,0.7,142.95,142.93,2.86920088]
[1763227083405,0.7,142.95,142.92,21.03270585]
[1763227083688,3.56920088,142.95,142.91,2.86920088]
[1763227083865,0.7,142.95,142.91,23.90338142]
[1763227084065,0.7,142.94,142.91,23.90338142]
[1763227084265,0.7,142.96,142.93,2.86920088]
[1763227084508,0.7,142.95,142.91,21.03418054]
[1763227084670,0.7,142.95,142.93,2.86920088]
[1763227085567,0.7,142.95,142.91,21.03418054]
[1763227085778,22.6512,142.98,142.93,2.86920088]
[1763227085984,0.7,142.96,142.93,2.86920088]
[1763227086293,2.86920088,142.94,142.84,9.78882769]
[1763227086500,2.86920088,142.93,142.89,2.86920088]
[1763227086676,22.6512,142.95,142.89,2.86920088]
[1763227086677,3.56920088,142.94,142.89,2.86920088]
[1763227086872,0.7,142.93,142.9,2.86920088]
[1763227087371,3.56920088,142.93,142.89,2.86920088]
[1763227087899,0.7,142.92,142.89,2.86920088]
[1763227089976,3.56920088,142.92,142.87,2.86920088]
[1763227090483,3.56920088,142.92,142.87,23.90780672]
[1763227090682,0.7,142.91,142.87,23.90780672]
[1763227091084,0.7,142.94,142.9,2.86920088]
[1763227091284,3.56920088,142.94,142.9,2.86920088]
[1763227091489,0.7,142.94,142.9,2.86920088]
[1763227092891,3.56920088,142.94,142.89,23.90485631]
[1763227093279,0.71,142.93,142.89,23.90485631]
[1763227094089,2.86920088,142.94,142.9,2.86920088]
[1763227094294,0.71,142.93,142.9,2.86920088]
[1763227096584,0.71,142.94,142.91,2.86920088]
[1763227096985,2.86920088,142.96,142.91,2.86920088]
[1763227097183,0.71,142.96,142.9,43.6912]
[1763227097383,0.71,142.96,142.93,2.86920088]
[1763227098106,0.71,142.96,142.92,23.90043225]
[1763227098478,0.71,142.96,142.93,2.86920088]
[1763227099399,2.86920088,142.95,142.92,21.03123137]
[1763227099603,2.86920088,142.95,142.9,2.86920088]
[1763227099785,3.57920088,142.94,142.9,23.90043225]
[1763227099998,3.57920088,142.94,142.89,25.52040088]
[1763227100180,0.71,142.93,142.89,46.55605631]
[1763227102512,0.71,142.93,142.89,23.90485631]
[1763227102687,3.57920088,142.93,142.89,2.86920088]
[1763227102886,2.54769757,142.93,142.89,1.83769757]
[1763227103090,0.71,142.92,142.89,1.83769757]
[1763227104193,0.71,142.92,142.88,21.03713053]
[1763227104400,0.71,142.92,142.89,1.83769757]
[1763227106224,0.71,142.94,142.9,1.83769757]
[1763227106790,2.54769757,142.94,142.88,21.03713053]
[1763227106995,1.83769757,142.93,142.88,22.8748281]
[1763227107215,0.71,142.93,142.89,1.83769757]
[1763227107518,0.71,142.92,142.89,1.83769757]
[1763227107991,0.71,142.92,142.88,21.03713053]
[1763227108193,0.71,142.92,142.89,1.83769757]
[1763227109810,0.71,142.94,142.9,1.83769757]
[1763227110119,0.71,142.94,142.91,1.83769757]
[1763227110324,1.83769757,142.96,142.92,1.83769757]
[1763227110632,0.71,142.95,142.92,1.83769757]
[1763227110991,0.71,142.95,142.91,1.83769757]
[1763227112128,2.54769757,142.95,142.9,22.87187811]
[1763227112426,1.83769757,142.93,142.89,1.83769757]
[1763227112632,1.83769757,142.93,142.89,22.873353]
[1763227112798,0.71,142.92,142.89,1.83769757]
[1763227114117,0.71,142.92,142.88,22.873353]
[1763227114305,0.71,142.92,142.87,1.83769757]
[1763227114506,0.71,142.92,142.88,1.83769757]
[1763227115843,0.71,142.92,142.89,1.83769757]
[1763227116403,0.71,142.92,142.87,21.03860584]
[1763227116817,0.71,142.92,142.89,1.83769757]
[1763227117429,0.71,142.94,142.91,1.83769757]
[1763227117633,1.83769757,142.96,142.92,1.83769757]
[1763227117822,0.71,142.95,142.92,1.83769757]
[1763227120010,66.92,143.02,142.94,1.83769757]
[1763227120011,0.71,142.99,142.94,1.83769757]
[1763227120212,2.54769757,142.99,142.95,1.83769757]
[1763227120738,0.71,142.98,142.95,1.83769757]
[1763227121434,0.71,142.98,142.94,1.83769757]
[1763227122825,0.71,142.98,142.95,1.83769757]
[1763227123944,0.71,142.98,142.94,1.83769757]
[1763227125035,0.71,142.98,142.95,1.83769757]
[1763227125437,2.51769757,143.0,142.96,1.83769757]
[1763227125643,0.68,143.0,142.97,1.83769757]
[1763227127911,0.1,143.02,142.99,1.83769757]
[1763227128116,2.61769757,143.02,142.97,1.83769757]
[1763227128349,2.61769757,143.02,142.95,21.02680918]
[1763227128645,2.51769757,143.01,142.97,1.83769757]
[1763227128814,0.1,143.02,142.95,42.06680918]
[1763227129015,0.1,143.02,142.95,49.06214133]
[1763227129220,0.78,143.02,142.95,49.06214133]
[1763227129438,0.78,143.02,142.99,1.83769757]
[1763227130124,0.78,143.02,142.95,21.02680918]
[1763227130434,0.78,143.02,142.99,1.83769757]
[1763227130646,0.78,143.02,142.95,21.02680918]
[1763227130844,0.1,143.02,143.01,1.83769757]
[1763227132240,0.1,143.02,143.0,2.80259239]
[1763227132440,0.1,143.02,143.01,1.83769757]
[1763227132845,0.1,143.02,143.0,2.80259239]
[1763227133029,0.78,143.02,143.0,1.83769757]
[1763227133551,0.78,143.02,142.99,1.83769757]
[1763227133755,0.78,143.02,143.0,1.83769757]
[1763227134533,0.1,143.02,143.01,1.83769757]
[1763227134820,0.1,143.02,143.01,34.27772526]
[1763227135732,0.1,143.02,143.01,24.48889757]
[1763227135933,0.1,143.02,143.01,1.83769757]
[1763227137823,0.78,143.02,142.97,2.80298517]
[1763227138017,0.78,143.02,142.99,1.83769757]
[1763227138238,0.1,143.02,142.99,1.83769757]
[1763227138642,0.78,143.02,142.99,1.83769757]
[1763227139227,0.1,143.02,143.0,1.83769757]
[1763227139630,0.78,143.02,142.99,21.02091581]
[1763227139836,0.78,143.02,142.99,1.83769757]
[1763227140326,0.78,143.02,142.98,1.83769757]
[1763227140937,0.1,143.02,143.0,1.83769757]
[1763227141330,0.1,143.02,143.01,1.83769757]
[1763227143323,0.1,143.02,143.01,4.64009361]
[1763227143647,0.1,143.02,143.01,27.29129361]
[1763227144340,0.78,143.06,143.02,61.7]
[1763227144547,0.78,143.06,143.03,1.83769757]
[1763227144748,0.78,143.06,143.02,166.63769757]
[1763227145251,2.61769757,143.06,143.02,164.8]
[1763227145645,2.51769757,143.05,143.02,164.8]
[1763227145953,0.68,143.05,143.02,164.8]
[1763227146131,0.68,143.04,143.02,164.8]
[1763227146655,1.83769757,143.03,143.02,164.8]
[1763227146837,1.83769757,143.03,142.98,2.80298517]
[1763227147039,1.83769757,143.01,142.98,61.7]
[1763227147344,0.68,143.02,142.98,61.7]
[1763227147546,0.68,143.01,142.98,61.7]
[1763227147741,0.68,143.01,142.98,63.53769757]
[1763227148057,2.51769757,143.01,142.98,61.7]
[1763227148434,0.68,143.0,142.98,61.7]
[1763227148756,0.68,143.0,142.96,63.53769757]
[1763227149137,0.68,143.02,142.97,1.83769757]
[1763227149356,9.78882769,143.05,142.96,61.7]
[1763227149357,1.83769757,143.03,142.98,1.83769757]
[1763227149735,1.83769757,143.03,142.99,1.83769757]
[1763227149736,0.68,143.02,142.99,1.83769757]
[1763227150450,0.68,143.02,142.98,1.83769757]
[1763227150756,0.68,143.02,142.96,61.7]
[1763227150959,0.68,143.02,142.98,1.83769757]
[1763227151538,2.51769757,143.02,142.98,1.83769757]
[1763227152157,0.68,143.02,142.97,1.83769757]
[1763227152335,0.69,143.01,142.97,1.83769757]
[1763227152760,0.69,143.01,142.96,61.7]
[1763227152958,1.83769757,143.02,142.96,82.74]
[1763227152959,0.65,143.02,142.96,82.74]
[1763227153260,1.83769757,143.03,142.98,1.83769757]
[1763227153450,0.65,143.01,142.98,1.83769757]
[1763227154738,22.7512,143.06,142.98,166.63769757]
[1763227154935,0.65,143.03,142.98,164.8]
[1763227155249,2.48769757,143.03,142.98,63.53769757]
[1763227155653,0.65,143.04,143.0,1.83769757]
[1763227155869,0.1,143.06,143.02,1.83769757]
[1763227156039,0.75,143.06,143.02,63.53769757]
[1763227156361,0.75,143.06,143.03,1.83769757]
[1763227156566,0.75,143.06,143.04,1.83769757]
[1763227156958,0.75,143.06,143.03,63.53769757]
[1763227160050,0.75,143.06,143.03,61.7]
[1763227160249,2.58769757,143.06,143.03,61.7]
[1763227160563,1.83769757,143.05,143.03,61.7]
[1763227160862,1.83769757,143.04,143.03,61.7]
[1763227161070,2.48769757,143.04,143.03,61.7]
[1763227161659,25.13889757,143.04,142.98,103.1]
[1763227161834,25.13889757,143.04,142.98,61.8]
[1763227161835,1.83769757,143.02,142.98,61.8]
[1763227162237,0.65,143.01,142.98,63.63769757]
[1763227162866,0.65,143.01,142.98,64.66745884]
[1763227163063,0.65,143.01,142.98,61.8]
[1763227163373,3.51745884,143.01,142.98,61.8]
[1763227163862,0.65,143.0,142.98,61.8]
[1763227165551,2.86745884,142.99,142.98,61.8]
[1763227165936,3.51745884,142.99,142.98,61.8]
[1763227171166,3.51745884,143.01,142.98,61.8]
[1763227171661,0.65,143.0,142.98,61.8]
[1763227173271,2.86745884,142.99,142.98,61.8]
[1763227173654,0.65,142.99,142.98,61.8]
[1763227174750,2.86745884,143.0,142.98,61.8]
[1763227174957,0.65,142.99,142.98,61.8]
[1763227176171,3.51745884,142.99,142.98,61.8]
[1763227178467,0.65,142.99,142.98,61.8]
[1763227178666,3.51745884,142.99,142.98,61.8]
[1763227178969,0.65,142.99,142.98,61.8]
[1763227179971,3.51745884,142.99,142.98,61.8]
[1763227180153,3.51745884,142.99,142.98,61.08]
[1763227180352,35.95748653,142.99,142.94,61.08]
[1763227180551,2.86745884,142.95,142.94,61.08]
[1763227180763,3.51745884,142.95,142.89,2.86745884]
[1763227181068,3.51745884,142.94,142.89,63.94745884]
[1763227181267,3.51745884,142.94,142.89,64.61745884]
[1763227181474,0.65,142.93,142.89,64.61745884]
[1763227182254,2.86745884,142.91,142.89,61.08]
[1763227182555,2.86745884,142.9,142.86,61.08]
[1763227182973,0.65,142.9,142.86,64.61745884]
[1763227183550,22.6512,142.94,142.88,2.86745884]
[1763227183551,2.86745884,142.92,142.88,2.86745884]
[1763227183758,2.86745884,142.94,142.89,2.86745884]
[1763227183980,2.86745884,142.94,142.9,2.86745884]
[1763227184161,0.72,142.93,142.89,64.66745884]
[1763227184385,2.86745884,142.92,142.89,61.08]
[1763227184877,3.58745884,142.92,142.89,61.08]
[1763227187773,0.72,142.94,142.89,61.8]
[1763227187959,2.86745884,142.93,142.89,61.8]
[1763227188456,0.72,142.92,142.89,61.08]
[1763227188852,50.0,143.01,142.91,2.86745884]
[1763227189054,2.86745884,142.96,142.92,2.86745884]
[1763227189278,2.86745884,142.96,142.92,63.94745884]
[1763227189578,2.86745884,142.96,142.92,64.66745884]
[1763227189956,3.58745884,142.96,142.92,61.8]
[1763227190276,3.58745884,142.96,142.92,61.08]
[1763227190483,3.58745884,142.96,142.92,64.66745884]
[1763227192757,23.3712,142.98,142.93,3.58745884]
[1763227193080,25.51865884,142.98,142.93,3.58745884]
[1763227193275,0.72,142.97,142.93,3.58745884]
[1763227193460,26.23865884,142.98,142.94,0.72]
[1763227193779,3.58745884,142.97,142.93,3.58745884]
[1763227194180,3.58745884,142.97,142.93,0.72]
[1763227194474,3.58745884,142.97,142.93,61.8]
[1763227196380,2.86745884,142.96,142.93,61.8]
[1763227196898,3.58745884,142.95,142.93,61.08]
[1763227197265,0.72,142.94,142.93,61.08]
[1763227198058,3.58745884,142.94,142.93,61.08]
[1763227200886,3.58745884,142.94,142.9,61.08]
[1763227201061,3.58745884,142.97,142.92,2.86745884]
[1763227201262,25.51865884,143.0,142.95,2.86745884]
[1763227201458,2.86745884,142.99,142.95,61.08]
[1763227201764,2.86745884,142.98,142.95,61.08]
[1763227201965,0.72,142.98,142.95,61.08]
[1763227202170,0.72,142.98,142.95,63.94745884]
[1763227202386,0.72,142.98,142.95,61.08]
[1763227202588,0.72,142.98,142.95,61.8]
[1763227202888,3.58745884,142.99,142.95,64.66745884]
[1763227203180,2.86745884,142.99,142.95,64.66745884]
[1763227203381,0.72,142.98,142.95,63.94745884]
[1763227204082,2.86745884,142.99,142.95,63.94745884]
[1763227204385,3.58745884,142.99,142.95,64.66745884]
[1763227204880,3.58745884,142.98,142.95,61.08]
[1763227205190,2.86745884,142.97,142.95,61.08]
[1763227205367,3.58745884,142.97,142.92,64.66745884]
[1763227205685,3.58745884,142.97,142.93,3.58745884]
[1763227205997,0.72,142.97,142.93,3.58745884]
[1763227206184,0.72,142.99,142.94,3.58745884]
[1763227206382,3.58745884,142.99,142.94,3.58745884]
[1763227206587,26.23865884,142.99,142.94,3.58745884]
[1763227206802,2.86745884,142.95,142.89,61.8]
[1763227207088,3.58745884,142.98,142.91,2.86745884]
[1763227207393,3.58745884,142.97,142.93,2.86745884]
[1763227207682,3.58745884,142.97,142.93,61.8]
[1763227210487,3.58745884,143.0,142.95,2.86745884]
[1763227210794,2.86745884,142.99,142.95,61.08]
[1763227210992,3.58745884,142.99,142.95,61.8]
[1763227211195,3.58745884,142.99,142.95,64.66745884]
[1763227211787,0.72,142.99,142.95,64.66745884]
[1763227212294,3.58745884,142.99,142.95,61.08]
[1763227212668,2.86745884,143.0,142.96,0.72]
[1763227212874,0.71,143.0,142.96,3.58745884]
[1763227213471,3.57745884,143.0,142.96,3.58745884]
[1763227213678,0.71,143.0,142.96,3.58745884]
[1763227214194,3.57745884,143.0,142.96,3.58745884]
[1763227214975,3.52745884,143.0,142.96,64.66745884]
[1763227216576,0.66,143.0,142.96,64.66745884]
[1763227216770,3.52745884,143.0,142.96,64.66745884]
[1763227216976,0.66,142.99,142.96,64.66745884]
[1763227217206,0.66,142.99,142.96,61.8]
[1763227217800,3.52745884,142.99,142.96,61.08]
[1763227218001,2.86745884,142.98,142.96,61.08]
[1763227218210,3.52745884,142.98,142.96,61.08]
[1763227218518,3.52745884,142.97,142.96,61.08]
[1763227219016,3.52745884,142.97,142.93,61.08]
[1763227219190,2.86745884,142.95,142.93,61.08]
[1763227219708,0.66,142.94,142.93,61.08]
[1763227220001,2.86745884,142.95,142.91,3.53745884]
[1763227220192,2.86745884,142.95,142.92,0.67]
[1763227220392,2.86745884,142.96,142.92,0.67]
[1763227220610,0.66,142.97,142.92,3.53745884]
[1763227220611,2.86745884,142.97,142.92,3.53745884]
[1763227220911,0.66,142.96,142.92,64.61745884]
[1763227221120,0.66,142.96,142.93,0.67]
[1763227221407,23.3112,142.98,142.93,0.67]
[1763227221708,2.86745884,142.96,142.92,61.08]
[1763227222085,3.52745884,142.96,142.92,61.75]
[1763227222711,3.52745884,142.95,142.92,61.08]
[1763227223109,0.66,142.94,142.92,61.08]
[1763227223308,0.66,142.94,142.9,61.08]
[1763227223512,2.86745884,142.93,142.88,61.75]
[1763227223688,23.3112,142.94,142.88,64.61745884]
[1763227224010,2.86745884,142.93,142.89,3.53745884]
[1763227224404,3.52745884,142.93,142.89,3.53745884]
[1763227225011,0.66,142.92,142.89,1.83771634]
[1763227225314,2.49771634,142.93,142.89,0.67]
[1763227226288,2.49771634,142.93,142.89,2.50771634]
[1763227226811,2.49771634,142.93,142.89,63.58771634]
[1763227228791,1.83771634,142.95,142.9,2.50771634]
[1763227229312,1.83771634,142.94,142.91,0.67]
[1763227229513,1.83771634,142.94,142.91,61.75]
[1763227231200,0.66,142.98,142.94,61.08]
[1763227231415,0.66,142.98,142.94,62.91771634]
[1763227231727,1.83771634,142.96,142.94,61.08]
[1763227232130,1.83771634,142.97,142.94,61.08]
[1763227232498,2.49771634,142.97,142.94,61.08]
[1763227233212,25.14891634,142.98,142.94,61.75]
[1763227233839,2.49771634,142.97,142.94,61.08]
[1763227234216,2.49771634,142.96,142.94,61.08]
[1763227234615,0.66,142.96,142.94,61.08]
[1763227236827,9.78882769,143.01,142.95,0.67]
[1763227237005,0.66,143.04,143.0,1.83771634]
[1763227237201,0.66,143.04,143.01,1.83771634]
[1763227237414,2.59771634,143.06,143.01,1.83771634]
[1763227237605,0.66,143.05,143.01,2.50771634]
[1763227238023,0.1,143.06,143.03,1.83771634]
[1763227238423,0.1,143.06,143.02,2.50771634]
[1763227239126,0.76,143.06,143.02,2.50771634]
[1763227239433,2.59771634,143.06,143.02,2.50771634]
[1763227239802,2.59771634,143.06,142.98,0.67]
[1763227239803,1.83771634,143.04,142.98,0.67]
[1763227240028,1.83771634,143.03,142.99,1.83771634]
[1763227240632,2.49771634,143.03,142.99,1.83771634]
[1763227240830,2.49771634,143.02,142.98,1.83771634]
[1763227241131,2.49771634,143.02,142.97,1.83771634]
[1763227241335,0.66,143.01,142.97,2.50771634]
[1763227241634,1.83771634,143.02,142.98,2.50771634]
[1763227241934,2.49771634,143.02,142.98,1.83771634]
[1763227242638,2.49771634,143.02,142.98,2.50771634]
[1763227243112,0.66,143.02,142.98,2.50771634]
[1763227243616,2.49771634,143.02,142.98,2.50771634]
[1763227244626,0.66,143.02,142.98,2.50771634]
[1763227244826,2.49771634,143.02,142.98,2.50771634]
[1763227247239,1.83771634,143.02,142.98,63.58771634]
[1763227247423,0.67,143.01,142.98,63.58771634]
[1763227248131,0.67,143.01,142.98,61.08]
[1763227249339,1.83771634,143.0,142.98,61.08]
[1763227249840,2.50771634,143.0,142.98,61.08]
[1763227251134,1.83771634,143.01,142.98,61.74]
[1763227251335,1.83771634,143.01,142.98,61.08]
[1763227251636,2.50771634,143.0,142.98,61.08]
[1763227251815,1.83771634,142.99,142.98,61.08]
[1763227252018,2.50771634,142.99,142.98,61.08]
[1763227253836,23.3212,143.01,142.98,61.08]
[1763227254137,2.50771634,143.0,142.98,61.08]
[1763227254522,0.67,143.0,142.98,61.08]
[1763227254721,24.48891634,143.01,142.98,61.08]
[1763227254925,25.15891634,143.01,142.98,61.08]
[1763227255329,24.48891634,143.02,142.98,61.74]
[1763227255738,25.15891634,143.02,142.98,61.74]
[1763227255918,0.67,143.01,142.98,61.08]
[1763227256240,2.50771634,143.01,142.98,61.08]
[1763227256946,1.83771634,143.0,142.98,61.08]
[1763227257149,2.50771634,143.0,142.98,61.08]
[1763227257320,0.67,142.99,142.98,61.08]
[1763227258456,1.83771634,143.0,142.98,61.08]
[1763227258620,2.50771634,143.0,142.98,61.08]
[1763227259336,2.50771634,142.99,142.98,61.08]
[1763227259523,9.78882769,143.05,142.99,0.66]
[1763227259716,0.1,143.06,143.04,3.67543268]
[1763227259920,0.1,143.06,143.03,22.6512]
[1763227260150,0.1,143.06,143.04,30.82882769]
[1763227260632,0.1,143.06,143.04,38.53592974]
[1763227260943,0.1,143.1,143.06,43.6912]
[1763227261155,0.1,143.1,143.06,45.52891634]
[1763227261352,0.1,143.1,143.06,43.6912]
[1763227261353,0.77,143.1,143.06,43.6912]
[1763227261542,1.93771634,143.1,143.06,1.83771634]
[1763227261735,0.1,143.1,143.06,24.48891634]
[1763227261919,0.1,143.1,143.06,34.27774403]
[1763227262124,0.1,143.1,143.09,22.6512]
[1763227262434,0.1,143.1,143.09,40.01740939]
[1763227262736,0.1,143.1,143.09,47.72451144]
[1763227263039,0.1,143.11,143.09,47.72451144]
[1763227263040,0.1,143.11,143.09,50.52455344]
[1763227263214,0.1,143.13,143.12,22.6512]
[1763227263856,0.1,143.13,143.1,30.82882769]
[1763227263857,0.1,143.13,143.1,38.17969305]
[1763227264166,0.1,143.13,143.12,1.83771634]
[1763227264752,0.77,143.13,143.09,1.83771634]
[1763227265121,0.1,143.13,143.12,1.83771634]
[1763227265317,0.1,143.13,143.11,1.83771634]
[1763227265952,0.1,143.13,143.09,22.6512]
[1763227266131,0.1,143.13,143.12,1.83771634]
[1763227267357,0.1,143.13,143.08,22.6512]
[1763227267564,0.1,143.13,143.12,1.83771634]
[1763227267852,0.77,143.16,143.15,61.7]
[1763227268061,0.77,143.16,143.12,1.83771634]
[1763227270968,0.77,143.16,143.09,9.78882769]
[1763227271140,0.77,143.16,143.12,1.83771634]
[1763227271961,0.1,143.16,143.14,1.83771634]
[1763227272140,0.78,143.16,143.13,1.83771634]
[1763227272742,0.78,143.16,143.12,1.83771634]
[1763227272942,1.71771634,143.17,143.11,1.83771634]
[1763227273680,1.71771634,143.17,143.11,2.51771634]
[1763227273871,1.71771634,143.17,143.12,1.83771634]
[1763227274242,1.93771634,143.18,143.12,1.83771634]
[1763227274754,1.83771634,143.16,143.12,61.7]
[1763227274956,1.83771634,143.15,143.12,61.7]
[1763227275365,2.54771634,143.14,143.12,61.7]
[1763227275563,0.71,143.14,143.12,61.7]
[1763227275962,0.71,143.13,143.12,61.7]
[1763227276267,0.71,143.13,143.09,61.7]
[1763227276268,25.19891634,143.13,143.09,61.7]
[1763227276464,25.19891634,143.13,143.07,1.83771634]
[1763227276671,0.71,143.12,143.07,1.83771634]
[1763227276879,0.71,143.12,143.08,1.83771634]
[1763227277162,0.71,143.12,143.09,1.83771634]
[1763227278667,0.71,143.12,143.08,1.83771634]
[1763227278868,0.71,143.12,143.07,0.68]
[1763227279073,22.6512,143.13,143.08,1.83771634]
[1763227279250,23.3612,143.13,143.09,1.83771634]
[1763227279650,0.71,143.12,143.09,1.83771634]
[1763227280060,0.71,143.12,143.07,0.68]